bitfinex-derivatives/quotes_ETHF0:USTF0_20250103
["timestamp","ask_amount","ask_price","bid_price","bid_amount"]
[1735900257003,0.29025,3447.8,3447.7,9.8972844]
[1735900257204,3.70935796,3447.8,3447.7,1.01095322]
[1735900257702,3.70935796,3447.8,3447.7,1.30121322]
[1735900260296,4.14494277,3447.8,3447.7,5.86160798]
[1735900260898,4.14494277,3447.8,3447.7,4.56039476]
[1735900261808,0.29026,3447.7,3447.6,4.85066476]
[1735900263304,3.71668202,3447.7,3447.6,4.61852157]
[1735900263897,3.71668202,3447.7,3447.6,4.32825157]
[1735900264101,3.71668202,3447.7,3447.6,4.61852157]
[1735900264300,2.57457386,3447.7,3447.6,4.61852157]
[1735900266305,2.57457386,3447.7,3447.6,4.32825157]
[1735900266505,2.57457386,3447.7,3447.6,4.61852157]
[1735900268213,2.28431386,3447.7,3447.6,4.61852157]
[1735900269913,2.28431386,3448.0,3447.6,24.3938693]
[1735900270108,2.28431386,3448.0,3447.9,4.50899322]
[1735900271513,2.28431386,3448.2,3448.1,0.29023]
[1735900271707,2.28431386,3448.2,3448.1,1.30118322]
[1735900273015,2.28431386,3448.2,3448.1,12.47150828]
[1735900275713,2.28431386,3448.3,3448.2,0.29022]
[1735900276612,2.57452386,3448.3,3448.2,0.29022]
[1735900276811,2.28431386,3448.3,3448.2,0.29022]
[1735900277211,2.28431386,3448.3,3448.2,4.85511897]
[1735900278517,2.28431386,3448.3,3448.2,9.18291331]
[1735900280017,2.28431386,3448.3,3448.2,4.85511897]
[1735900281224,2.28431386,3448.4,3448.2,6.84207349]
[1735900281422,2.28431386,3448.4,3448.3,4.50896322]
[1735900282317,2.28431386,3448.9,3448.8,0.29017]
[1735900283119,2.57447386,3448.9,3448.8,0.29017]
[1735900283825,0.29016,3448.9,3448.8,0.29017]
[1735900284423,0.29016,3448.9,3448.8,1.30112322]
[1735900286023,2.76701831,3449.0,3448.9,0.29016]
[1735900286226,2.28431386,3449.0,3448.9,0.29016]
[1735900286425,2.57446386,3449.0,3448.9,0.29016]
[1735900287914,0.29015,3449.0,3448.9,0.29016]
[1735900288115,0.29016,3448.9,3448.8,1.30112322]
[1735900288717,0.29016,3448.9,3448.8,0.29017]
[1735900291125,0.29016,3448.9,3448.8,1.30112322]
[1735900293025,0.29016,3448.9,3448.8,1.01095322]
[1735900294028,0.72561742,3448.9,3448.8,1.01095322]
[1735900296227,0.29019,3448.7,3448.6,1.30113322]
[1735900296526,2.17183064,3448.9,3448.5,4.3278]
[1735900296827,2.17183064,3448.9,3448.5,4.50894322]
[1735900296828,0.29019,3448.6,3448.5,4.50894322]
[1735900297128,0.29019,3448.6,3448.5,4.21875322]
[1735900297625,0.29021,3448.3,3448.2,1.01095322]
[1735900297926,0.29021,3448.3,3448.2,1.30117322]
[1735900299323,2.5677783,3448.3,3448.2,1.30117322]
[1735900299719,2.2775683,3448.3,3448.0,3.2078]
[1735900299924,0.29023,3448.2,3448.1,1.30117322]
[1735900300823,2.5677983,3448.2,3448.1,1.30117322]
[1735900301420,2.5677983,3448.2,3448.1,1.01095322]
[1735900301724,2.2775683,3448.2,3448.1,1.30118322]
[1735900302123,4.55881061,3448.5,3448.4,0.2902]
[1735900302124,2.2775683,3448.5,3448.4,0.2902]
[1735900302424,2.2775683,3448.5,3448.4,4.50895322]
[1735900303630,0.29018,3448.7,3448.4,8.7783686]
[1735900303830,3.2078,3448.8,3448.6,1.01095322]
[1735900304031,3.49797,3448.8,3448.7,0.29018]
[1735900305633,3.2078,3448.8,3448.7,0.29018]
[1735900305836,0.29016,3449.0,3448.9,0.29015]
[1735900306330,0.29016,3449.0,3448.9,1.30110322]
[1735900308318,0.29016,3449.0,3448.9,1.30111322]
[1735900317236,0.72558085,3449.0,3448.9,1.30111322]
[1735900317729,0.43542085,3449.0,3448.9,1.30111322]
[1735900317934,0.43542085,3449.0,3448.9,2.31206644]
[1735900318141,4.99423146,3449.0,3448.9,2.31206644]
[1735900319931,2.28005962,3449.3,3449.2,0.29013]
[1735900320134,2.28005962,3449.3,3449.2,3.49793]
[1735900322939,2.28005962,3449.4,3449.3,0.29013]
[1735900323141,2.28005962,3449.4,3449.3,1.30108322]
[1735900324138,0.2901,3449.7,3449.6,0.2901]
[1735900324438,0.2901,3449.7,3449.6,1.30105322]
[1735900325937,2.28005962,3449.9,3449.6,1.01095322]
[1735900326239,2.28005962,3449.9,3449.8,1.30103322]
[1735900326240,2.57013962,3449.9,3449.8,1.30103322]
[1735900327234,0.29008,3449.9,3449.8,1.30103322]
[1735900331139,0.72540281,3449.9,3449.8,1.30103322]
[1735900332239,0.43532281,3449.9,3449.8,1.30103322]
[1735900332636,3.84943477,3449.9,3449.8,1.30103322]
[1735900334246,2.275221,3450.0,3449.9,0.29008]
[1735900335040,1.9260695,3450.0,3449.9,1.30103322]
[1735900335639,3.41411196,3450.3,3449.9,1.01095322]
[1735900335845,3.41411196,3450.3,3450.2,4.50880322]
[1735900338041,0.29003,3450.5,3450.4,0.29003]
[1735900338242,0.29003,3450.5,3450.4,1.30098322]
[1735900339452,0.29002,3450.7,3450.6,0.29001]
[1735900339647,0.29002,3450.7,3450.6,1.30096322]
[1735900340146,0.29,3450.9,3450.8,0.28999]
[1735900340443,0.29,3450.9,3450.8,1.30094322]
[1735900342743,0.28999,3451.0,3450.9,0.28998]
[1735900343550,0.28999,3450.9,3450.8,1.30094322]
[1735900343945,3.2078,3451.1,3450.8,2.02190644]
[1735900344246,0.28997,3451.3,3451.2,0.28996]
[1735900344448,0.28997,3451.3,3451.2,1.30091322]
[1735900344840,0.28997,3451.2,3451.1,3.2078]
[1735900345042,0.72487,3451.5,3451.1,1.01095322]
[1735900345246,0.28997,3451.2,3451.1,0.28997]
[1735900346549,0.28997,3451.2,3451.1,1.01095322]
[1735900346746,0.28998,3451.1,3451.0,3.2078]
[1735900347050,0.28998,3451.1,3451.0,4.21875322]
[1735900347241,0.28998,3451.1,3451.0,3.2078]
[1735900347444,0.28999,3450.9,3450.8,2.13295322]
[1735900347948,0.28999,3450.9,3450.8,1.01095322]
[1735900348346,0.28999,3450.9,3450.5,4.3298]
[1735900348347,0.29001,3450.8,3450.7,0.29]
[1735900351651,0.29001,3450.7,3450.6,2.58512109]
[1735900355342,0.28999,3451.0,3450.9,0.28998]
[1735900355754,0.28998,3451.1,3451.0,0.28997]
[1735900356153,0.28997,3451.2,3451.1,0.28996]
[1735900357751,0.28996,3451.4,3451.3,0.28995]
[1735900358761,0.28995,3451.5,3451.4,0.28994]
[1735900358948,0.28994,3451.6,3451.5,0.28994]
[1735900362580,0.72476,3452.0,3451.3,3.2078]
[1735900362581,0.28995,3451.5,3451.4,0.28994]
[1735900364772,0.72481,3451.8,3451.3,3.2078]
[1735900365072,3.93264,3451.7,3451.1,3.70808109]
[1735900365274,0.28997,3451.2,3451.1,1.41297]
[1735900365467,0.28998,3451.1,3451.0,0.28998]
[1735900365664,0.72487,3451.5,3450.9,3.2078]
[1735900365869,0.28998,3451.0,3450.9,3.49778]
[1735900366072,0.28998,3451.0,3450.9,3.2078]
[1735900366270,0.29,3450.8,3450.7,0.29001]
[1735900369071,3.93271,3451.3,3450.5,5.50291109]
[1735900369279,0.29,3450.9,3450.8,2.58510109]
[1735900377778,0.29,3450.9,3450.8,0.28999]
[1735900382085,0.29,3450.9,3450.8,4.83524302]
[1735900384083,3.41411196,3451.2,3450.8,4.54525302]
[1735900384387,0.28999,3451.1,3451.0,1.29876267]
[1735900384583,3.41411196,3451.2,3450.8,4.54525302]
[1735900384786,0.28999,3451.0,3450.9,0.28998]
[1735900384985,3.70410196,3451.0,3450.9,0.28998]
[1735900387786,4.13927109,3451.0,3450.9,0.28998]
[1735900391194,0.28999,3451.0,3450.9,4.83523302]
[1735900392390,0.28999,3451.0,3450.9,4.54525302]
[1735900392594,0.28999,3451.0,3450.9,4.83524302]
[1735900394099,3.70409196,3451.1,3451.0,0.28998]
[1735900394295,3.70409196,3451.1,3451.0,1.29876267]
[1735900395193,0.28998,3451.1,3451.0,5.84401569]
[1735900395998,3.41411196,3451.2,3451.1,0.28998]
[1735900397893,3.70405196,3451.5,3451.1,4.62268339]
[1735900398091,3.41411196,3451.5,3451.4,1.29873267]
[1735900399803,4.84874061,3451.7,3451.6,0.28993]
[1735900399804,0.28993,3451.7,3451.6,0.28993]
[1735900400104,0.28993,3451.7,3451.6,1.29871267]
[1735900406907,4.99390048,3451.7,3451.6,1.29871267]
[1735900407609,5.28382048,3451.7,3451.6,1.29871267]
[1735900408700,4.99390048,3451.7,3451.6,1.29871267]
[1735900409710,0.72473,3452.2,3451.3,3.93269]
[1735900409711,4.55881061,3451.8,3451.3,3.93269]
[1735900409912,4.84873061,3451.8,3451.7,1.29870267]
[1735900410507,4.55881061,3451.8,3451.3,3.93269]
[1735900410712,0.28994,3451.6,3451.5,1.29871267]
[1735900411109,3.70620999,3451.6,3451.5,1.29871267]
[1735900413011,0.72502987,3451.6,3451.5,1.29871267]
[1735900414710,0.28994,3451.6,3451.5,1.29871267]
[1735900422825,3.70590062,3451.7,3451.6,0.28993]
[1735900423118,3.41597062,3451.7,3451.6,0.28993]
[1735900423517,3.70589062,3451.8,3451.7,0.28992]
[1735900423716,3.70589062,3451.8,3451.7,1.29870267]
[1735900424222,3.41597062,3451.8,3451.7,4.50650267]
[1735900424909,3.41597062,3452.0,3451.7,4.21658267]
[1735900425118,3.41597062,3452.0,3451.9,1.29869267]
[1735900426917,3.70586062,3452.1,3452.0,0.2899]
[1735900428326,0.28989,3452.1,3452.0,0.2899]
[1735900429616,3.41597062,3452.4,3452.0,1.00878267]
[1735900429819,3.70584062,3452.4,3452.3,1.29865267]
[1735900430622,3.41597062,3452.4,3452.3,1.29865267]
[1735900431122,3.70584062,3452.4,3452.3,1.29865267]
[1735900431323,0.28987,3452.4,3452.3,1.29865267]
[1735900434424,5.14935329,3452.8,3452.3,1.29865267]
[1735900434425,3.41597062,3452.8,3452.3,1.00878267]
[1735900434634,3.41597062,3452.8,3452.7,1.29862267]
[1735900435934,3.41597062,3453.2,3452.7,1.00878267]
[1735900436238,3.70578062,3453.2,3453.1,0.28981]
[1735900436439,3.70577062,3453.2,3453.1,0.28981]
[1735900436936,3.41597062,3453.2,3453.1,0.28981]
[1735900437431,10.4517052,3453.2,3453.0,2.29234511]
[1735900437635,10.4517052,3453.2,3453.1,0.28981]
[1735900438237,10.7415052,3453.2,3453.1,0.28981]
[1735900438635,10.4517052,3453.2,3452.6,3.2078]
[1735900438836,0.28984,3452.8,3452.7,0.28983]
[1735900439444,0.28984,3452.7,3452.6,3.49764]
[1735900439645,7.75640565,3453.2,3452.6,3.2078]
[1735900439844,0.28983,3452.9,3452.8,0.28983]
[1735900440047,4.83843565,3452.9,3452.8,0.28983]
[1735900440740,4.54860565,3452.9,3452.8,0.28983]
[1735900441341,4.83842565,3452.9,3452.8,0.28983]
[1735900441745,0.72476958,3452.9,3452.8,0.28983]
[1735900442938,5.27337523,3452.9,3452.8,0.28983]
[1735900444243,0.28982,3452.9,3452.8,0.28983]
[1735900446652,0.28983,3453.0,3452.9,0.28981]
[1735900447547,0.28981,3453.1,3453.0,0.28981]
[1735900449247,4.13601133,3453.4,3452.8,0.72459]
[1735900449456,0.2898,3453.3,3453.2,0.28979]
[1735900449651,3.41155133,3453.4,3453.0,2.29234511]
[1735900449950,3.70134133,3453.4,3453.3,0.28979]
[1735900450553,0.28979,3453.4,3453.3,0.28979]
[1735900451248,3.41155133,3453.5,3453.0,2.29234511]
[1735900451449,0.28981,3453.2,3453.1,0.2898]
[1735900452757,0.2898,3453.4,3453.3,0.28978]
[1735900453542,0.2898,3453.4,3452.9,0.72457]
[1735900453543,3.2078,3453.6,3452.7,2.29234511]
[1735900453753,0.28981,3453.2,3453.1,0.2898]
[1735900454257,0.28982,3453.1,3453.0,0.28981]
[1735900454855,0.28983,3453.0,3452.9,0.28981]
[1735900455052,0.28984,3452.8,3452.7,0.28983]
[1735900455950,0.72453,3453.1,3452.6,3.2078]
[1735900456152,0.28984,3452.7,3452.6,3.49765]
[1735900457054,0.28984,3452.7,3452.6,3.2078]
[1735900457255,0.28984,3452.7,3452.6,3.49765]
[1735900457456,0.28984,3452.7,3452.6,3.2078]
[1735900458552,5.05054655,3452.7,3452.6,3.2078]
[1735900460949,10.73820981,3452.7,3452.6,3.2078]
[1735900461253,10.73820981,3452.7,3452.6,3.49765]
[1735900461554,10.73820981,3452.7,3452.6,3.2078]
[1735900461755,10.73820981,3452.7,3452.6,3.49765]
[1735900462152,10.73820981,3452.7,3452.6,3.2078]
[1735900462357,10.73820981,3452.7,3452.6,3.49765]
[1735900462558,10.73820981,3452.7,3452.6,3.2078]
[1735900462964,10.73820981,3452.7,3452.6,3.49765]
[1735900463256,10.73820981,3452.7,3452.6,3.2078]
[1735900463552,10.73820981,3452.7,3452.6,3.49765]
[1735900463860,10.73820981,3452.7,3452.6,3.2078]
[1735900464063,10.73820981,3452.7,3452.6,3.49765]
[1735900464260,10.73820981,3452.7,3452.6,3.2078]
[1735900464860,51.53820981,3452.7,3452.6,3.2078]
[1735900465254,51.53820981,3452.7,3452.6,3.49765]
[1735900466557,43.36539351,3452.7,3452.6,3.49765]
[1735900466758,43.36539351,3452.7,3452.6,3.2078]
[1735900468564,43.36539351,3452.7,3452.6,3.49765]
[1735900468959,43.36539351,3452.7,3452.6,3.2078]
[1735900469566,41.08984,3452.7,3452.6,3.2078]
[1735900470959,44.50317027,3452.7,3452.6,3.2078]
[1735900471958,0.28985,3452.6,3452.5,1.29776469]
[1735900472355,0.28985,3452.6,3452.5,1.00791469]
[1735900472561,0.28985,3452.6,3452.5,1.29777469]
[1735900473166,0.28985,3452.6,3452.5,1.00791469]
[1735900473563,0.28985,3452.6,3452.5,1.29777469]
[1735900473763,3.70318027,3452.6,3452.5,1.29777469]
[1735900474368,0.28987,3452.5,3452.4,0.28986]
[1735900475066,41.08987,3452.5,3452.4,0.28986]
[1735900475367,0.28987,3452.4,3452.3,1.29778469]
[1735900475771,1.29778469,3452.4,3452.3,0.28987]
[1735900476264,0.28987,3452.4,3452.3,1.29778469]
[1735900476468,0.28988,3452.2,3452.1,4.54141203]
[1735900476671,1.29779469,3452.2,3452.1,4.54141203]
[1735900477761,0.2899,3452.0,3451.9,1.29782469]
[1735900478664,0.2899,3452.0,3451.9,1.00791469]
[1735900479159,0.2899,3452.0,3451.9,1.29782469]
[1735900479365,2.56805796,3452.0,3451.9,1.29782469]
[1735900480871,0.2899,3452.0,3451.9,1.29782469]
[1735900482065,10.74601062,3452.0,3451.9,1.29782469]
[1735900482265,10.74601062,3452.0,3451.9,1.00791469]
[1735900483376,10.74601062,3452.0,3451.9,1.29782469]
[1735900484970,10.74601062,3452.0,3451.9,1.00791469]
[1735900485767,0.28991,3451.9,3451.8,3.2078]
[1735900486574,0.72496153,3451.9,3451.8,3.2078]
[1735900488170,5.05695372,3451.9,3451.8,3.2078]
[1735900489370,45.85695372,3451.9,3451.8,3.2078]
[1735900489677,43.36611574,3451.9,3451.8,3.2078]
[1735900493383,41.08991,3451.9,3451.8,3.2078]
[1735900496178,46.07741494,3451.9,3451.8,3.2078]
[1735900497275,41.52500346,3451.9,3451.8,3.2078]
[1735900497667,0.28995,3451.5,3451.3,1.00791469]
[1735900497872,0.28995,3451.4,3451.3,0.28995]
[1735900498972,2.56572779,3451.4,3451.3,0.28995]
[1735900499680,0.28996,3451.3,3451.2,4.50567469]
[1735900500480,0.28996,3451.3,3451.2,4.21571469]
[1735900500777,0.28996,3451.3,3451.2,4.50568469]
[1735900501979,3.70362669,3451.3,3451.2,4.50568469]
[1735900504776,0.28996,3451.3,3451.2,4.50568469]
[1735900505779,0.28996,3451.3,3451.2,1.29788469]
[1735900508884,0.28996,3451.3,3451.2,0.28997]
[1735900509482,1.00791469,3451.4,3450.9,4.54141203]
[1735900509680,1.29789469,3451.0,3450.9,4.54141203]
[1735900510780,42.09789469,3451.0,3450.9,4.54141203]
[1735900511684,0.29,3450.8,3450.7,0.29001]
[1735900511881,1.29791469,3450.8,3450.7,0.29001]
[1735900512279,0.29003,3450.6,3450.5,0.29002]
[1735900512592,0.29003,3450.4,3450.3,3.49784]
[1735900512788,1.29794469,3450.4,3450.3,3.49784]
[1735900513685,1.29794469,3450.4,3450.3,3.2078]
[1735900513991,1.29794469,3450.4,3450.3,3.49784]
[1735900514884,0.29003,3450.4,3450.3,3.49784]
[1735900515586,2.27605163,3450.7,3450.3,4.21571469]
[1735900515787,2.56606163,3450.7,3450.6,1.29793469]
[1735900516093,2.27605163,3450.7,3450.6,1.29793469]
[1735900517291,3.70366669,3450.8,3450.7,0.29001]
[1735900517292,0.29,3450.8,3450.7,0.29001]
[1735900518683,0.29,3450.9,3450.6,1.00791469]
[1735900518988,0.29,3450.9,3450.8,1.29790469]
[1735900519189,2.27605163,3451.1,3450.8,1.00791469]
[1735900519492,2.27605163,3451.1,3451.0,1.29789469]
[1735900520294,0.28996,3451.3,3451.0,1.00791469]
[1735900520596,0.29,3450.8,3450.7,3.49781]
[1735900520789,0.29,3450.8,3450.7,0.29001]
[1735900521286,41.09,3450.8,3450.7,0.29001]
[1735900522191,0.29003,3450.6,3450.5,0.29001]
[1735900523685,0.29003,3450.6,3450.3,7.74921203]
[1735900523686,5.70933865,3451.4,3450.3,10.04488399]
[1735900523890,0.29,3451.0,3450.9,0.28998]
[1735900526701,0.29001,3450.8,3450.7,0.29]
[1735900527597,0.29003,3450.4,3450.3,8.03925203]
[1735900529798,0.29003,3450.4,3450.3,3.49784]
[1735900531106,0.29003,3450.4,3450.3,0.29004]
[1735900531301,0.29003,3450.4,3450.3,3.49784]
[1735900531801,0.29003,3450.4,3450.3,3.2078]
[1735900532703,0.29003,3450.4,3450.3,3.49784]
[1735900534103,0.72505,3450.7,3450.1,4.54141203]
[1735900534299,0.29005,3450.3,3450.2,0.29005]
[1735900535601,2.29567196,3450.5,3450.1,4.54141203]
[1735900535801,0.29005,3450.4,3450.3,0.29003]
[1735900536005,0.29006,3450.3,3450.2,0.29004]
[1735900536399,2.29567196,3450.5,3449.9,7.74921203]
[1735900536609,0.29007,3450.1,3450.0,0.29005]
[1735900538209,0.29007,3450.0,3449.9,8.03927203]
[1735900538407,0.29007,3450.0,3449.9,3.49786]
[1735900540208,0.29007,3450.1,3450.0,0.29006]
[1735900542905,0.29007,3450.1,3449.9,3.2078]
[1735900542906,2.27605163,3450.5,3449.9,3.2078]
[1735900543109,2.56608163,3450.5,3450.4,0.29003]
[1735900544114,2.27605163,3450.5,3450.4,0.29003]
[1735900544508,2.27605163,3450.7,3450.3,3.2078]
[1735900544709,2.27605163,3450.7,3450.6,0.29002]
[1735900545203,2.27605163,3450.7,3450.6,2.58569196]
[1735900545814,2.27605163,3450.7,3450.6,7.58569196]
[1735900546118,3.41366669,3451.3,3451.2,0.28997]
[1735900546318,3.41366669,3451.3,3451.2,4.62177]
[1735900546615,3.41366669,3451.3,3451.2,9.62177]
[1735900546915,3.41366669,3451.3,3451.2,11.91744196]
[1735900547610,2.29567196,3452.3,3452.0,0.28989]
[1735900547819,0.28989,3452.1,3452.0,0.28989]
[1735900548318,2.29567196,3452.3,3451.8,3.2078]
[1735900548713,2.29567196,3452.0,3451.2,16.65750088]
[1735900548914,0.28992,3451.8,3451.7,0.28992]
[1735900549420,0.28989,3452.2,3452.1,0.28989]
[1735900549819,41.08989,3452.2,3452.1,0.28989]
[1735900550208,3.41366669,3452.5,3452.4,0.28987]
[1735900550414,3.70352669,3452.5,3452.4,0.28987]
[1735900550611,3.41366669,3452.5,3452.4,0.28987]
[1735900550812,40.8,3452.5,3452.4,0.28987]
[1735900551018,40.8,3452.5,3452.4,3.49767]
[1735900551211,3.41366669,3452.6,3452.4,3.2078]
[1735900551417,3.70351669,3452.6,3452.5,0.28986]
[1735900551722,44.21366669,3452.6,3452.5,0.28986]
[1735900551919,44.50351669,3452.6,3452.5,0.28986]
[1735900552117,0.28986,3452.5,3452.4,3.49766]
[1735900552320,44.50351669,3452.6,3452.5,0.28986]
[1735900552518,40.8,3452.6,3452.5,0.28986]
[1735900553519,0.28983,3452.9,3452.8,0.28983]
[1735900553720,0.28981,3453.1,3453.0,0.28981]
[1735900553918,0.2898,3453.2,3453.1,0.28981]
[1735900554114,3.70345669,3453.3,3453.2,0.2898]
[1735900554311,3.41366669,3453.3,3453.2,0.2898]
[1735900555717,5.50347196,3453.9,3453.8,0.28975]
[1735900556422,46.30347196,3453.9,3453.8,0.28975]
[1735900556927,46.30347196,3453.9,3453.2,3.2078]
[1735900557126,2.58544196,3453.6,3453.4,0.28978]
[1735900557324,2.58544196,3453.6,3453.5,0.28977]
[1735900557719,0.28977,3453.5,3453.4,0.28978]
[1735900558018,2.58544196,3453.6,3453.4,0.28978]
[1735900558723,2.29567196,3453.6,3453.2,1.124]
[1735900559025,2.58544196,3453.6,3453.2,1.124]
[1735900559320,2.58544196,3453.6,3453.5,0.28977]
[1735900560527,0.28978,3453.5,3453.4,0.28978]
[1735900560722,2.29567196,3453.6,3452.8,3.2078]
[1735900560922,0.2898,3453.2,3453.1,0.2898]
[1735900561632,41.0898,3453.2,3453.1,0.2898]
[1735900564027,40.8,3453.2,3453.1,0.2898]
[1735900564933,41.0898,3453.2,3453.1,0.2898]
[1735900566339,40.8,3453.2,3453.1,0.2898]
[1735900566540,0.28979,3453.3,3453.2,0.2898]
[1735900566936,0.28981,3453.2,3453.1,0.2898]
[1735900576746,0.28982,3453.1,3453.0,0.2898]
[1735900579946,41.52445,3453.5,3453.2,0.28979]
[1735900579947,0.2898,3453.3,3453.2,0.28979]
[1735900584448,0.2898,3453.3,3452.9,0.72456]
[1735900584449,2.29567196,3453.3,3452.8,3.2078]
[1735900584653,2.58549196,3453.0,3452.9,0.28981]
[1735900587156,0.28982,3452.9,3452.8,3.49763]
[1735900590957,0.28982,3452.9,3452.8,0.28983]
[1735900600363,3.70348669,3452.9,3452.8,0.28983]
[1735900601467,0.28982,3452.9,3452.8,0.28983]
[1735900603355,3.41366669,3453.0,3452.7,3.2078]
[1735900603554,3.70348669,3453.0,3452.9,0.28982]
[1735900603963,0.28982,3453.0,3452.9,0.28982]
[1735900606570,3.70897987,3453.1,3453.0,0.28982]
[1735900607870,3.41916987,3453.1,3453.0,0.28982]
[1735900608568,3.85409896,3453.1,3453.0,0.28982]
[1735900609370,3.85409896,3453.1,3453.0,1.42382]
[1735900610072,3.41916987,3453.4,3453.0,5.79699168]
[1735900610269,3.41916987,3453.4,3453.3,0.28979]
[1735900610664,3.70894987,3453.4,3453.3,0.28979]
[1735900611474,0.28978,3453.4,3453.3,0.28979]
[1735900614373,0.28979,3453.3,3453.2,4.83016948]
[1735900615976,0.2898,3453.2,3453.1,4.83017948]
[1735900616177,0.2898,3453.2,3453.1,4.54037948]
[1735900617276,0.2898,3453.2,3452.5,8.88217948]
[1735900617277,0.72455,3453.0,3452.5,8.88217948]
[1735900617471,0.28985,3452.6,3452.5,4.54037948]
[1735900618173,0.28985,3452.6,3452.5,4.83023948]
[1735900618480,0.28985,3452.7,3452.6,0.28985]
[1735900619175,4.5590468,3452.8,3452.3,4.54037948]
[1735900619376,4.8488768,3452.8,3452.7,0.28984]
[1735900620281,4.14332064,3452.8,3452.7,0.28984]
[1735900621479,3.70834375,3452.8,3452.7,0.28984]
[1735900624080,0.28983,3452.8,3452.7,0.28984]
[1735900624472,6.62631375,3452.9,3452.5,4.54037948]
[1735900624688,0.28985,3452.6,3452.5,4.83022948]
[1735900625784,40.8,3452.8,3452.6,0.28984]
[1735900625785,0.28985,3452.7,3452.6,0.28984]
[1735900626178,6.62631375,3452.9,3452.5,4.54037948]
[1735900626379,6.91614375,3452.9,3452.8,0.28983]
[1735900626881,3.41851375,3452.9,3452.8,0.28983]
[1735900627976,0.28982,3453.0,3452.7,7.74817948]
[1735900628181,0.28982,3453.0,3452.9,0.28982]
[1735900628983,44.21851375,3453.1,3452.7,7.74817948]
[1735900629281,44.50832375,3453.1,3453.0,0.28982]
[1735900629890,44.21851375,3453.1,3452.7,7.74817948]
[1735900630090,0.28983,3452.9,3452.8,0.28982]
[1735900631481,44.65343302,3453.1,3452.8,0.28982]
[1735900631688,0.28982,3453.0,3452.9,0.28982]
[1735900631886,3.70833375,3453.0,3452.9,0.28982]
[1735900634689,4.14327928,3453.0,3452.9,0.28982]
[1735900635990,3.70833375,3453.0,3452.9,0.28982]
[1735900637987,3.41851375,3453.0,3452.7,4.54037948]
[1735900638286,0.28983,3452.9,3452.8,0.28983]
[1735900638587,0.28983,3452.9,3452.7,4.54037948]
[1735900638588,0.28983,3452.8,3452.7,4.54037948]
[1735900639090,0.28983,3452.8,3452.7,4.83021948]
[1735900639590,0.28983,3452.8,3452.7,0.28984]
[1735900639995,0.28984,3452.7,3452.6,4.83021948]
[1735900640590,0.28984,3452.7,3452.6,4.54037948]
[1735900640788,0.28984,3452.7,3452.6,4.83022948]
[1735900641891,0.28984,3452.7,3452.6,4.54037948]
[1735900642393,0.28984,3452.7,3452.4,4.83023948]
[1735900642394,0.28986,3452.5,3452.4,4.83023948]
[1735900644398,3.41851375,3452.7,3452.4,4.54037948]
[1735900644595,3.41851375,3452.7,3452.6,1.29776559]
[1735900646298,3.41851375,3452.7,3452.6,0.28985]
[1735900646499,0.2898,3453.2,3453.1,0.28981]
[1735900647291,0.28982,3453.0,3452.9,0.28981]
[1735900649893,3.41851375,3453.1,3452.7,4.54279511]
[1735900650092,3.41851375,3453.1,3453.0,0.28982]
[1735900650796,44.21851375,3453.1,3453.0,0.28982]
[1735900651686,40.8,3453.1,3453.0,0.28982]
[1735900651890,41.08981,3453.1,3453.0,0.28982]
[1735900652686,40.8,3453.1,3453.0,0.28982]
[1735900654295,41.08981,3453.1,3453.0,0.28982]
[1735900656094,44.50832375,3453.1,3453.0,0.28982]
[1735900657602,0.28982,3453.0,3452.9,0.28982]
[1735900658603,0.28982,3452.9,3452.8,4.83262511]
[1735900658789,0.28982,3452.9,3452.8,4.54279511]
[1735900658991,0.28983,3452.8,3452.7,4.83263511]
[1735900661702,0.28983,3452.8,3452.7,4.66857777]
[1735900663004,0.72479544,3452.8,3452.7,0.28984]
[1735900670804,0.28985,3452.7,3452.6,0.28985]
[1735900671910,0.72481544,3452.7,3452.6,0.28985]
[1735900674305,1.73261626,3452.7,3452.6,0.28985]
[1735900682212,0.72481544,3452.7,3452.6,0.28985]
[1735900683715,3.85464067,3452.7,3452.6,0.28985]
[1735900684110,4.14448067,3452.7,3452.6,0.28985]
[1735900684413,5.15228149,3452.7,3452.6,0.28985]
[1735900685412,4.14448067,3452.7,3452.6,0.28985]
[1735900688018,0.72480544,3452.7,3452.6,0.28985]
[1735900688418,0.43496544,3452.7,3452.6,0.28985]
[1735900688911,0.28984,3452.7,3452.6,0.28985]
[1735900690016,5.56684762,3452.9,3452.5,0.72465]
[1735900690320,3.41941428,3452.7,3452.6,0.28985]
[1735900690920,3.70925428,3452.7,3452.6,0.28985]
[1735900693318,4.14422101,3452.7,3452.6,0.28985]
[1735900695019,3.85438101,3452.7,3452.6,0.28985]
[1735900695714,3.41941428,3452.7,3452.6,0.28985]
[1735900696814,3.70925428,3452.7,3452.6,0.28985]
[1735900697218,0.28984,3452.7,3452.6,0.28985]
[1735900698524,3.70925428,3452.7,3452.6,0.28985]
[1735900700213,3.70925428,3452.7,3452.6,4.83756483]
[1735900701422,4.14422828,3452.7,3452.6,4.83756483]
[1735900702914,0.724814,3452.7,3452.6,4.83756483]
[1735900704123,0.434974,3452.7,3452.6,4.83756483]
[1735900704318,0.28984,3452.7,3452.6,4.67337876]
[1735900706222,0.724814,3452.7,3452.6,4.67337876]
[1735900707516,0.724814,3452.7,3452.6,4.38352876]
[1735900707716,0.724814,3452.7,3452.6,4.67337876]
[1735900708919,0.724814,3452.7,3452.6,11.48757143]
[1735900710326,0.724814,3452.7,3452.6,11.19772143]
[1735900710526,0.724814,3452.7,3452.6,4.38352876]
[1735900712122,0.28987,3452.4,3452.3,8.05283459]
[1735900713131,0.724844,3452.4,3452.3,8.05283459]
[1735900713928,0.724844,3452.4,3452.3,4.84503459]
[1735900716134,0.724844,3452.4,3452.3,4.55516459]
[1735900717231,0.28987,3452.3,3452.2,5.85284541]
[1735900718736,4.14685642,3452.3,3452.2,10.23716254]
[1735900719829,4.14685642,3452.3,3452.2,9.94728254]
[1735900720024,4.14685642,3452.3,3452.2,10.23716254]
[1735900720234,3.71188242,3452.3,3452.2,5.85284541]
[1735900727335,3.71188242,3452.3,3452.2,5.56296541]
[1735900728238,3.71188242,3452.3,3452.2,5.85284541]
[1735900730539,0.28987,3452.3,3452.2,5.85284541]
[1735900730735,0.28987,3452.3,3452.2,5.56296541]